lending/lending_fUSD_20240411
["ID","MTS","AMOUNT","RATE_DAILY","PERIOD"]
[322207656,1712870054640,-150.0,0.00044294,30]
[322207657,1712870054650,-208.958793,0.00044302,30]
[322207658,1712870054660,-153.24438006,0.00044316,30]
[322207659,1712870054669,-150.0,0.00044322,30]
[322207660,1712870054678,-208.958793,0.00044351,30]
[322207661,1712870054688,-150.84220277,0.0004436,30]
[322207662,1712870054697,-150.0,0.00044366,30]
[322207663,1712870054706,-150.9125583,0.00044366,30]
[322207664,1712870054716,-150.9125583,0.00044368,30]
[322207665,1712870054725,-150.0,0.00044398,30]
[322207666,1712870054735,-208.958793,0.00044399,30]
[322207667,1712870054745,-153.3059433,0.00044439,30]
[322207668,1712870054754,-208.958793,0.00044447,30]
[322207669,1712870054763,-150.0,0.00044448,30]
[322207670,1712870054772,-162.87122376,0.00044465,30]
[322207671,1712870054781,-208.958793,0.00044495,30]
[322207672,1712870054791,-150.0,0.00044502,30]
[322207673,1712870054802,-371.31816133,0.00044517,30]
[322207674,1712870054812,-150.0,0.0004453,30]
[322207675,1712870054823,-371.31816133,0.00044534,30]
[322207676,1712870054832,-208.958793,0.00044544,30]
[322207677,1712870054842,-17985.83639409,0.00044548,12]
[322207678,1712870054851,-153.94990066,0.00044556,30]
[322207679,1712870054860,-208.958793,0.00044592,30]
[322207680,1712870054871,-150.0,0.00044606,30]
[322207681,1712870054881,-150.0,0.00044613,30]
[322207682,1712870054890,-208.958793,0.0004464,30]
[322207683,1712870054900,-150.0,0.0004464,30]
[322207684,1712870054909,-208.958793,0.00044689,30]
[322207685,1712870054918,-162.87122376,0.00044695,30]
[322207686,1712870054928,-150.0,0.00044695,30]
[322207687,1712870054937,-175.32,0.00044701,2]
[322207688,1712870054946,-211.42,0.00044701,2]
[322207689,1712870054955,-150.0,0.0004471,30]
[322207690,1712870054964,-371.31816133,0.00044718,30]
[322207691,1712870054973,-165.96780529,0.00044736,30]
[322207692,1712870054982,-208.958793,0.00044737,30]
[322207693,1712870054993,-153.31963962,0.00044743,30]
[322207694,1712870055003,-150.0,0.00044778,30]
[322207695,1712870055012,-150.9125583,0.00044781,30]
[322207696,1712870055022,-208.958793,0.00044785,30]
[322207697,1712870055031,-150.0,0.00044814,30]
[322207698,1712870055040,-208.958793,0.00044834,30]
[322207699,1712870055049,-150.0,0.0004484,30]
[322207700,1712870055058,-150.0,0.0004486,30]
[322207701,1712870055068,-208.958793,0.00044882,30]
[322207702,1712870055077,-1100.0,0.000449,30]
[322207703,1712870055086,-154.94218976,0.00044911,30]
[322207704,1712870055095,-150.0,0.00044918,30]
[322207705,1712870055105,-167.52558322,0.00044921,30]
[322207706,1712870055114,-208.958793,0.0004493,30]
[322207707,1712870055123,-162.87122376,0.00044934,30]
[322207708,1712870055133,-150.0,0.00044943,30]
[322207709,1712870055142,-150.0,0.00044959,30]
[322207710,1712870055151,-150.0,0.00044959,30]
[322207711,1712870055161,-208.958793,0.00044979,30]
[322207712,1712870055171,-5000.0,0.00044986,4]
[322207713,1712870055180,-100000.0,0.00045,45]
[322207714,1712870055189,-168.73719176,0.00045,4]
[322207715,1712870055199,-1000.0,0.00045,30]
[322207716,1712870055210,-386.86855034,0.00045,30]
[322207717,1712870055222,-6111.0,0.00045,120]
[322207718,1712870055231,-301.81207575,0.00045,30]
[322207719,1712870055242,-1000.0,0.00045,2]
[322207720,1712870055251,-500.0,0.00045,30]
[322207721,1712870055260,-150.0,0.00045,85]
[322207722,1712870055271,-1000.0,0.00045,120]
[322207723,1712870055282,-313.43,0.00045,4]
[322207724,1712870055291,-2418.05130206,0.00045,120]
[322207725,1712870055300,-500.0,0.00045,120]
[322207726,1712870055310,-2386.81465282,0.00045,30]
[322207727,1712870055319,-150.0,0.00045,2]
[322207728,1712870055328,-882.0,0.00045,30]
[322207729,1712870055337,-650.94,0.00045,7]
[322207730,1712870055347,-371.77,0.00045,7]
[322207731,1712870055356,-150.0,0.00045022,30]
[322207732,1712870055365,-150.0,0.00045025,30]
[322207733,1712870055374,-208.958793,0.00045027,30]
[322207734,1712870055384,-208.958793,0.00045075,30]
[322207735,1712870055394,-176.61357959,0.00045106,30]
[322207736,1712870055404,-150.0,0.00045108,30]
[322207737,1712870055417,-154.94218982,0.00045112,30]
[322207738,1712870055427,-153.31963962,0.00045115,30]
[322207739,1712870055437,-208.958793,0.00045124,30]
[322207740,1712870055447,-150.0,0.00045126,30]
[322207741,1712870055459,-157.041119,0.00045148,57]
[322207742,1712870055468,-208.958793,0.00045172,30]
[322207743,1712870055478,-150.0,0.0004519,30]
[322207744,1712870055490,-890.18,0.00045191,2]
[322207745,1712870055498,-1000.0,0.00045205,2]
[322207746,1712870055507,-208.958793,0.0004522,30]
[322207747,1712870055517,-150.9125583,0.00045223,30]
[322207748,1712870055526,-150.0,0.0004523,30]
[322207749,1712870055535,-208.958793,0.00045268,30]
[322207750,1712870055546,-150.0,0.00045273,30]
[322207751,1712870055556,-150.0,0.00045278,30]
[322207752,1712870055565,-371.31816133,0.00045303,30]
[322207753,1712870055574,-208.958793,0.00045317,30]
[322207754,1712870055584,-150.0,0.00045334,30]
[322207755,1712870055593,-150.0,0.00045355,30]
[322207756,1712870055602,-208.958793,0.00045365,30]
[322207757,1712870055612,-208.958793,0.00045413,30]
[322207758,1712870055621,-150.0,0.00045438,30]
[322207759,1712870055630,-150.0,0.00045438,30]
[322207760,1712870055640,-150.0,0.00045438,30]
[322207761,1712870055648,-150.0,0.00045438,30]
[322207762,1712870055657,-208.958793,0.00045462,30]
[322207763,1712870055666,-150.0,0.000455,8]
[322207764,1712870055675,-208.958793,0.0004551,30]
[322207765,1712870055684,-150.0,0.0004552,30]
[322207766,1712870055694,-150.0,0.00045542,30]
[322207767,1712870055703,-154.92106806,0.00045545,30]
[322207768,1712870055712,-150.84220277,0.00045558,30]
[322207769,1712870055722,-153.24438006,0.00045558,30]
[322207770,1712870055731,-153.3059433,0.00045558,30]
[322207771,1712870055740,-208.958793,0.00045558,30]
[322207772,1712870055749,-153.94990066,0.00045559,30]
[322207773,1712870055759,-150.9125583,0.00045573,30]
[322207774,1712870055768,-150.0,0.00045597,30]
[322207775,1712870055777,-150.0,0.00045602,30]
[322207776,1712870055786,-208.958793,0.00045607,30]
[322207777,1712870055795,-150.0,0.00045646,30]
[322207778,1712870055804,-208.958793,0.00045655,30]
[322207779,1712870055924,-150.84220277,0.00045656,30]
[322207780,1712870055933,-151.47,0.00045662,2]
[322207781,1712870055942,-151.23013096,0.00045682,30]
[322207782,1712870055952,-150.0,0.00045685,30]
[322207783,1712870055962,-208.958793,0.00045703,30]
[322207784,1712870055973,-150.9125583,0.00045719,30]
[322207785,1712870055984,-150.0,0.00045749,30]
[322207786,1712870055995,-208.958793,0.00045752,30]
[322207787,1712870056005,-150.0,0.00045767,30]
[322207788,1712870056014,-153.3059433,0.00045785,30]
[322207789,1712870056024,-208.958793,0.000458,30]
[322207790,1712870056035,-154.92106806,0.00045823,30]
[322207791,1712870056044,-208.958793,0.00045848,30]
[322207792,1712870056053,-150.0,0.0004585,30]
[322207793,1712870056064,-153.40602891,0.00045853,30]
[322207794,1712870056073,-150.0,0.00045853,30]
[322207795,1712870056083,-11340.80757805,0.00045888,60]
[322207796,1712870056093,-208.958793,0.00045897,30]
[322207797,1712870056103,-415.84759571,0.000459,3]
[322207798,1712870056113,-163.8381924,0.000459,30]
[322207799,1712870056122,-150.0,0.00045916,30]
[322207800,1712870056133,-150.0,0.00045916,30]
[322207801,1712870056142,-154.92106806,0.00045919,30]
[322207802,1712870056151,-150.0,0.00045932,30]
[322207803,1712870056160,-208.958793,0.00045945,30]
[322207804,1712870056169,-150.0,0.00045957,30]
[322207805,1712870056178,-208.958793,0.00045993,30]
[322207806,1712870056187,-100000.0,0.00046,46]
[322207807,1712870056195,-500.0,0.00046,2]
[322207808,1712870056204,-642.9179415,0.00046,47]
[322207809,1712870056213,-199.40069517,0.00046,70]
[322207810,1712870056222,-150.0,0.00046,96]
[322207811,1712870056231,-160.03162462,0.00046,15]
[322207812,1712870056240,-17628.42539531,0.00046,90]
[322207813,1712870056249,-2172.74717457,0.00046,2]
[322207814,1712870056258,-150.0,0.00046,8]
[322207815,1712870056267,-150.0,0.00046015,30]
[322207816,1712870056276,-150.0,0.00046035,30]
[322207817,1712870056285,-208.958793,0.00046041,30]
[322207818,1712870056294,-150.0,0.00046061,30]
[322207819,1712870056303,-208.958793,0.0004609,30]
[322207820,1712870056312,-150.0,0.00046097,30]
[322207821,1712870056321,-208.958793,0.00046138,30]
[322207822,1712870056331,-150.0,0.00046165,30]
[322207823,1712870056340,-162.87122376,0.00046179,30]
[322207824,1712870056349,-150.0,0.0004618,30]
[322207825,1712870056360,-162.87122376,0.00046183,30]
[322207826,1712870056371,-208.958793,0.00046186,30]
[322207827,1712870056380,-153.40602891,0.00046228,30]
[322207828,1712870056389,-208.958793,0.00046235,30]
[322207829,1712870056398,-150.0,0.00046235,30]
[322207830,1712870056407,-1036.28,0.00046247,15]
[322207831,1712870056420,-150.0,0.00046262,30]
[322207832,1712870056429,-150.0,0.00046269,30]
[322207833,1712870056438,-208.958793,0.00046283,30]
[322207834,1712870056447,-208.958793,0.00046331,30]
[322207835,1712870056456,-150.0,0.00046345,30]
[322207836,1712870056466,-150.0,0.00046373,30]
[322207837,1712870056475,-208.958793,0.0004638,30]
[322207838,1712870056484,-153.94990066,0.00046427,30]
[322207839,1712870056494,-150.0,0.00046427,30]
[322207840,1712870056503,-208.958793,0.00046428,30]
[322207841,1712870056514,-153.40602891,0.00046446,30]
[322207842,1712870056524,-153.31963962,0.00046446,30]
[322207843,1712870056533,-208.958793,0.00046476,30]
[322207844,1712870056542,-150.0,0.00046477,30]
[322207845,1712870056551,-5290.0,0.000465,30]
[322207846,1712870056560,-150.0,0.000465,8]
[322207847,1712870056569,-150.0,0.0004651,30]
[322207848,1712870056579,-208.958793,0.00046525,30]
[322207849,1712870056588,-162.87122376,0.0004655,30]
[322207850,1712870056597,-150.0,0.00046554,30]
[322207851,1712870056606,-162.87122376,0.00046571,30]
[322207852,1712870056615,-208.958793,0.00046573,30]
[322207853,1712870056625,-397.8395891,0.00046575,2]
[322207854,1712870056634,-150.0,0.00046581,30]
[322207855,1712870056643,-150.0,0.00046592,30]
[322207856,1712870056652,-208.958793,0.00046621,30]
[322207857,1712870056661,-158.82600262,0.00046633,30]
[322207858,1712870056670,-150.0,0.00046633,30]
[322207859,1712870056679,-150.84220277,0.00046653,30]
[322207860,1712870056688,-208.958793,0.0004667,30]
[322207861,1712870056697,-150.0,0.00046675,30]
[322207862,1712870056706,-150.0,0.00046685,30]
[322207863,1712870056715,-163.44113223,0.00046692,30]
[322207864,1712870056724,-2740.0,0.000467,115]
[322207865,1712870056733,-150.9125583,0.000467,30]
[322207866,1712870056743,-362.76964149,0.00046704,35]
[322207867,1712870056752,-169.65625038,0.00046704,35]
[322207868,1712870056761,-208.958793,0.00046718,30]
[322207869,1712870056770,-150.0,0.00046757,30]
[322207870,1712870056779,-208.958793,0.00046766,30]
[322207871,1712870056788,-151.23013097,0.00046789,30]
[322207872,1712870056798,-150.0,0.00046789,30]
[322207873,1712870056807,-153.94990066,0.00046794,30]
[322207874,1712870056816,-10000.0,0.000468,30]
[322207875,1712870056826,-150.9125583,0.0004681,30]
[322207876,1712870056835,-208.958793,0.00046814,30]
[322207877,1712870056844,-150.0,0.00046839,30]
[322207878,1712870056853,-208.958793,0.00046863,30]
[322207879,1712870056862,-150.0,0.00046872,30]
[322207880,1712870056872,-150.0,0.00046872,30]
[322207881,1712870056881,-150.0,0.00046893,30]
[322207882,1712870056890,-208.958793,0.00046911,30]
[322207883,1712870056900,-150.0,0.00046922,30]
[322207884,1712870056910,-155.0200712,0.00046934,30]
[322207885,1712870056919,-208.958793,0.00046959,30]
[322207886,1712870056928,-150.0,0.00046997,30]
[322207887,1712870056937,-100000.0,0.00047,47]
[322207888,1712870056946,-1526.0,0.00047,120]
[322207889,1712870056955,-15067.73846858,0.00047,120]
[322207890,1712870056964,-791.33594853,0.00047,75]
[322207891,1712870056973,-19166.39359014,0.00047,30]
[322207892,1712870057405,-896.99,0.00030958,2]
[322207893,1712870057418,-500.0,0.00030958,2]
[322207894,1712870057428,-1774.88,0.00032602,2]
[322207895,1712870057437,-363.58679999,0.00033424,7]
[322207896,1712870057451,-175.36320001,0.00033424,7]
[322207897,1712870057461,-256.23146639,0.00047,30]
[322207898,1712870057852,-1912.9668,0.0002491,2]
[322207899,1712870057864,-253.84471448,0.0002491,2]
[322207900,1712870057894,-167.25513509,0.000209,2]
[322207901,1712870057904,-832.74486491,0.0002491,2]
[322207902,1712870057917,-4898.03300974,0.0002491,2]
[322207903,1712870057928,-500.0,0.00027397,2]
[322207904,1712870057938,-500.0,0.00027397,2]
[322207905,1712870057947,-500.0,0.00027397,2]
[322207906,1712870057957,-500.0,0.00027397,2]
[322207907,1712870057967,-500.0,0.00027671,2]
[322207908,1712870057976,-464.6972431,0.00027671,2]
[322207909,1712870057986,-500.0,0.00027945,2]
[322207910,1712870057997,-500.0,0.00028219,2]
[322207911,1712870058007,-1303.54003435,0.000284,2]
[322207912,1712870058019,-500.0,0.00028493,2]
[322207913,1712870058028,-500.0,0.00028767,2]
[322207914,1712870058038,-500.0,0.00029041,2]
[322207915,1712870058050,-500.0,0.00031232,2]
[322207916,1712870058059,-896.99,0.00031232,2]
[322207917,1712870058069,-500.0,0.00031506,2]
[322207918,1712870058078,-896.99,0.00031506,2]
[322207919,1712870058088,-500.0,0.0003178,2]
[322207920,1712870058097,-529.74950829,0.0003178,2]
[322207921,1712870060504,1500.0,0.00019939,2]
[322207927,1712870844766,307.17927733,0.00019939,2]
[322207928,1712870847535,155.6868564,0.00019939,2]
[322207929,1712870849441,296.25451302,0.00019939,2]
[322207930,1712870859022,155.0,0.00019939,2]
[322207936,1712870995621,2355.59207324,0.00020501,2]
[322207940,1712871032376,-1000.0,0.00020502,2]
[322207941,1712871032386,-165.75103513,0.00020898,2]
[322207942,1712871032397,-863.11991372,0.00020999,2]
[322207943,1712871032407,-3634.0731,0.00020999,2]
[322207944,1712871032415,-3810.43341699,0.00020999,2]
[322207945,1712871032425,-350.0,0.00021,3]
[322207946,1712871032434,-400.0,0.00023,3]
[322207947,1712871032443,-339.31,0.00023855,2]
[322207948,1712871032453,-165.75103513,0.00024098,2]
[322207949,1712871032462,-1936.19053788,0.00024106,2]
[322207950,1712871032472,-155.37066366,0.00024107,2]
[322207951,1712871032481,-450.0,0.00025,3]
[322207952,1712871032491,-6079.49,0.00025757,2]
[322207953,1712871032500,-5189.41,0.00025757,2]
[322207954,1712871032509,-499.99,0.00025757,2]
[322207955,1712871032518,-250.0,0.00025772,2]
[322207956,1712871032527,-1000.0,0.00025772,2]
[322207957,1712871032536,-250.0,0.00025772,2]
[322207958,1712871032545,-1000.0,0.00025772,2]
[322207959,1712871032554,-186.01,0.00025772,2]
[322207960,1712871032563,-250.0,0.0002593,2]
[322207961,1712871032573,-376.23,0.00025998,2]
[322207962,1712871032583,-150.99,0.00026014,2]
[322207963,1712871032593,-732.02,0.0002606,2]
[322207964,1712871032602,-339.31,0.00026118,2]
[322207965,1712871032612,-175.61,0.00026421,2]
[322207966,1712871032621,-268.0535,0.00026787,2]
[322207967,1712871032631,-500.0,0.00027,3]
[322207968,1712871032640,-297.29902466,0.00027121,4]
[322207969,1712871032650,-2795.93139993,0.00027187,2]
[322207970,1712871032659,-605.47986658,0.00027187,2]
[322207971,1712871032669,-605.47986658,0.00027187,2]
[322207972,1712871032678,-605.47986658,0.00027187,2]
[322207973,1712871032687,-605.47986658,0.00027187,2]
[322207974,1712871032696,-605.47986658,0.00027187,2]
[322207975,1712871032708,-605.47986658,0.00027187,2]
[322207976,1712871032720,-605.47986658,0.00027187,2]
[322207977,1712871032737,-605.47986658,0.00027187,2]
[322207978,1712871032748,-605.47986658,0.00027187,2]
[322207979,1712871032758,-605.47986658,0.00027187,2]
[322207980,1712871032770,-605.47986658,0.00027187,2]
[322207981,1712871032781,-605.47986658,0.00027187,2]
[322207982,1712871032791,-605.47986658,0.00027187,2]
[322207983,1712871032803,-605.47986658,0.00027187,2]
[322207984,1712871032814,-605.47986658,0.00027187,2]
[322207985,1712871032824,-605.47986658,0.00027187,2]
[322207986,1712871032835,-259.72089633,0.00027196,2]
[322207987,1712871032846,-4936.3024,0.00027197,2]
[322207988,1712871032856,-7222.60858716,0.00027197,2]
[322207989,1712871032875,-73233.32844329,0.00027197,2]
[322207991,1712871038253,-13165.49687923,0.00027197,2]
[322207992,1712871038297,-12757.28349032,0.00027197,2]
[322207993,1712871038308,-1000.0,0.00027197,2]
[322207994,1712871038318,-1754.7935,0.00027197,2]
[322207995,1712871038329,-2500.0,0.00027197,2]
[322207996,1712871038339,-18593.86312567,0.00027197,2]
[322208002,1712871038827,-1437.52753945,0.00027197,2]
[322208004,1712871038839,-1235.65267169,0.00027197,2]
[322208011,1712871038898,-7120.05763323,0.00027197,2]
[322208013,1712871038908,-2893.33592156,0.00027197,2]
[322208015,1712871038922,-629.5726125,0.00027197,2]
[322208018,1712871038934,-689.77422234,0.00027197,2]
[322208020,1712871038944,-169.05733157,0.00027197,3]
[322208023,1712871038961,-605.47986658,0.00027285,2]
[322208025,1712871038976,-605.47986658,0.00027285,2]
[322208027,1712871038986,-605.47986658,0.00027287,2]
[322208030,1712871038998,-605.47986658,0.00027287,2]
[322208032,1712871039009,-605.47986658,0.00027287,2]
[322208034,1712871039023,-605.47986658,0.00027287,2]
[322208036,1712871039034,-605.47986658,0.00027287,2]
[322208038,1712871039044,-605.47986658,0.00027287,2]
[322208040,1712871039055,-605.47986658,0.00027287,2]
[322208041,1712871039065,-405.32596378,0.00027287,2]
[322208042,1712871039080,-200.1539028,0.00027287,2]
[322208043,1712871039090,-378.8237028,0.00027287,2]
[322208044,1712871039104,-226.65616378,0.00027287,2]
[322208045,1712871039115,-605.47986658,0.00027287,2]
[322208046,1712871039126,-605.47986658,0.00027287,2]
[322208047,1712871039137,-605.47986658,0.00027287,2]
[322208048,1712871039148,-9946.53085165,0.00027295,2]
[322208050,1712871039159,-362.27924693,0.00027296,2]
[322208052,1712871039171,-15209.92234715,0.00027297,2]
[322208055,1712871039185,-82382.64576218,0.00027297,2]
[322208057,1712871039197,-147407.43189067,0.00027297,2]
[322208059,1712871039206,-1100.2976,0.00027297,2]
[322208061,1712871039217,-1000.0,0.00027297,2]
[322208063,1712871039228,-500.0,0.00027297,2]
[322208065,1712871039238,-1204.7789,0.00027297,2]
[322208068,1712871039248,-17500.0,0.00027297,2]
[322208070,1712871039258,-165.75103513,0.00027297,2]
[322208072,1712871039269,-800.0,0.0002737,2]
[322208074,1712871039280,-570.59194654,0.00027381,2]
[322208076,1712871039290,-346.59738873,0.00027395,2]
[322208078,1712871039301,-155.0,0.00027395,2]
[322208080,1712871039311,-155.39379797,0.00027395,2]
[322208082,1712871039321,-169.12911613,0.00027395,2]
[322208085,1712871039331,-156.42022389,0.00027395,2]
[322208087,1712871039341,-201.70970814,0.00027395,2]
[322208089,1712871039351,-198.43466289,0.00027395,2]
[322208091,1712871039361,-264.23544895,0.00027395,2]
[322208093,1712871039370,-160.91122999,0.00027395,2]
[322208095,1712871039385,-155.0,0.00027395,2]
[322208098,1712871039395,-6389.74782867,0.00027395,2]
[322208100,1712871039407,-540.83230062,0.00027395,3]
[322208102,1712871039417,-342.16157541,0.00027395,2]
[322208104,1712871039427,-503.87779719,0.00027395,2]
[322208106,1712871039438,-1764.087237,0.00027395,2]
[322208108,1712871039448,-155.8559771,0.00027395,2]
[322208111,1712871039460,-155.17959631,0.00027395,2]
[322208113,1712871039470,-155.0,0.00027395,2]
[322208115,1712871039480,-336.19067971,0.00027396,2]
[322208117,1712871039491,-5357.36156544,0.00027396,2]
[322208119,1712871039501,-500.0,0.00027397,2]
[322208121,1712871039511,-500.0,0.00027397,2]
[322208123,1712871039521,-500.0,0.00027397,2]
[322208125,1712871039532,-500.0,0.00027397,2]
[322208128,1712871039542,-500.0,0.00027397,2]
[322208130,1712871039553,-500.0,0.00027397,2]
[322208132,1712871039562,-500.0,0.00027397,2]
[322208134,1712871039572,-500.0,0.00027397,2]
[322208136,1712871039582,-215.99189234,0.00027397,2]
[322208138,1712871039593,-500.0,0.00027397,2]
[322208140,1712871039603,-500.0,0.00027397,2]
[322208142,1712871039613,-500.0,0.00027397,2]
[322208144,1712871039624,-500.0,0.00027397,2]
[322208147,1712871039634,-500.0,0.00027397,2]
[322208149,1712871039648,-507.73392188,0.00027397,2]
[322208151,1712871039658,-500.0,0.00027397,2]
[322208153,1712871039667,-240.04331075,0.00027397,2]
[322208155,1712871039677,-500.0,0.00027397,2]
[322208157,1712871039687,-500.0,0.00027397,2]
[322208159,1712871039696,-500.0,0.00027397,2]
[322208229,1712871040281,-500.0,0.00027397,2]
[322208232,1712871040301,-500.0,0.00027397,2]
[322208235,1712871040319,-500.0,0.00027397,2]
[322208238,1712871040334,-500.0,0.00027397,2]
[322208240,1712871040343,-500.0,0.00027397,2]
[322208242,1712871040354,-500.0,0.00027397,2]
[322208244,1712871040363,-574.16885424,0.00027397,2]
[322208246,1712871040373,-500.0,0.00027397,2]
[322208248,1712871040382,-500.0,0.00027397,2]
[322208250,1712871040392,-500.0,0.00027397,2]
[322208252,1712871040402,-500.0,0.00027397,2]
[322208254,1712871040411,-500.0,0.00027397,2]
[322208256,1712871040419,-269.06827834,0.00027397,2]
[322208258,1712871040428,-500.0,0.00027397,2]
[322208260,1712871040437,-500.0,0.00027397,2]
[322208262,1712871040447,-637.88600504,0.00027397,2]
[322208264,1712871040456,-500.0,0.00027397,2]
[322208266,1712871040465,-500.0,0.00027397,2]
[322208268,1712871040474,-500.0,0.00027397,2]
[322208270,1712871040483,-500.0,0.00027397,2]
[322208272,1712871040493,-500.0,0.00027397,2]
[322208274,1712871040502,-315.88096224,0.00027397,2]
[322208276,1712871040511,-500.0,0.00027397,2]
[322208278,1712871040522,-574.21564177,0.00027397,2]
[322208280,1712871040531,-500.0,0.00027397,2]
[322208283,1712871040551,-238.97737043,0.00027397,2]
[322208285,1712871040561,-500.0,0.00027397,2]
[322208287,1712871040571,-500.0,0.00027397,2]
[322208289,1712871040580,-500.0,0.00027397,2]
[322208291,1712871040590,-500.0,0.00027397,2]
[322208293,1712871040599,-500.0,0.00027397,2]
[322208295,1712871040609,-500.0,0.00027397,2]
[322208297,1712871040618,-500.0,0.00027397,2]
[322208299,1712871040628,-500.0,0.00027397,2]
[322208301,1712871040638,-500.0,0.00027397,2]
[322208304,1712871040648,-500.0,0.00027397,2]
[322208306,1712871040659,-500.0,0.00027397,2]
[322208308,1712871040668,-500.0,0.00027397,2]
[322208310,1712871040677,-500.0,0.00027397,2]
[322208312,1712871040686,-500.0,0.00027397,2]
[322208314,1712871040696,-500.0,0.00027397,2]
[322208316,1712871040705,-500.0,0.00027397,2]
[322208318,1712871040714,-500.0,0.00027397,2]
[322208320,1712871040727,-506.60188452,0.00027397,2]
[322208322,1712871040738,-500.0,0.00027397,2]
[322208324,1712871040747,-500.0,0.00027397,2]
[322208326,1712871040757,-456.66068442,0.00027397,2]
[322208328,1712871040768,-500.0,0.00027397,2]
[322208330,1712871040779,-500.0,0.00027397,2]
[322208332,1712871040789,-500.0,0.00027397,2]
[322208334,1712871040801,-500.0,0.00027397,2]
[322208336,1712871040810,-1929.02,0.00027397,2]
[322208338,1712871040819,-500.0,0.00027397,2]
[322208340,1712871040829,-500.0,0.00027397,2]
[322208342,1712871040838,-476.61,0.00027397,2]
[322208344,1712871040848,-500.0,0.00027397,2]
[322208346,1712871040858,-500.0,0.00027397,2]
[322208348,1712871040869,-500.0,0.00027397,2]
[322208350,1712871040879,-500.0,0.00027397,2]
[322208352,1712871040890,-500.0,0.00027397,2]
[322208354,1712871040901,-751.17,0.00027397,2]
[322208356,1712871040911,-500.0,0.00027397,2]
[322208358,1712871040922,-500.0,0.00027397,2]
[322208360,1712871040933,-500.0,0.00027397,2]
[322208362,1712871040943,-500.0,0.00027397,2]
[322208364,1712871040954,-500.0,0.00027397,2]
[322208366,1712871040966,-500.0,0.00027397,2]
[322208368,1712871040977,-500.0,0.00027397,2]
[322208370,1712871040987,-500.0,0.00027397,2]
[322208372,1712871040997,-541.28,0.00027397,2]
[322208374,1712871041009,-500.0,0.00027397,2]
[322208376,1712871041021,-500.0,0.00027397,2]
[322208379,1712871041032,-500.0,0.00027397,2]
[322208381,1712871041042,-500.0,0.00027397,2]
[322208383,1712871041051,-500.0,0.00027397,2]
[322208385,1712871041062,-500.0,0.00027397,2]
[322208386,1712871041073,-500.0,0.00027397,2]
[322208387,1712871041083,-500.0,0.00027397,2]
[322208388,1712871041094,-500.0,0.00027397,2]
[322208389,1712871041104,-500.0,0.00027397,2]
[322208390,1712871041114,-1222.52,0.00027397,2]
[322208391,1712871041124,-500.0,0.00027397,2]
[322208392,1712871041133,-500.0,0.00027397,2]
[322208393,1712871041143,-500.0,0.00027397,2]
[322208396,1712871041155,-500.0,0.00027397,2]
[322208397,1712871041165,-500.0,0.00027397,2]
[322208399,1712871041176,-500.0,0.00027397,2]
[322208402,1712871041188,-500.0,0.00027397,2]
[322208403,1712871041198,-500.0,0.00027397,2]
[322208406,1712871041212,-567.17,0.00027397,2]
[322208408,1712871041224,-500.0,0.00027397,2]
[322208410,1712871041234,-500.0,0.00027397,2]
[322208412,1712871041245,-500.0,0.00027397,2]
[322208414,1712871041256,-500.0,0.00027397,2]
[322208416,1712871041266,-548.57,0.00027397,2]
[322208418,1712871041276,-500.0,0.00027397,2]
[322208420,1712871041290,-500.0,0.00027397,2]